bitfinex/quotes_SOLUSD_20250728
["timestamp","ask_amount","ask_price","bid_price","bid_amount"]
[1753672249438,21.65288991,191.84,191.83,1e-08]
[1753672249939,0.28432314,191.84,191.83,1e-08]
[1753672250240,36.98,191.84,191.83,1e-08]
[1753672250406,42.19267723,191.84,191.83,1e-08]
[1753672250612,42.84426188,191.84,191.83,1e-08]
[1753672251940,36.98,191.84,191.83,0.72000001]
[1753672252717,0.65155069,191.85,191.83,5.58820595]
[1753672252917,5.21104742,191.9,191.84,5.58820594]
[1753672253130,40.35071386,191.89,191.86,4.86820594]
[1753672253445,40.35071386,191.89,191.86,0.72]
[1753672253940,36.98,191.89,191.87,5.58820594]
[1753672254143,36.98,191.89,191.83,1e-08]
[1753672254450,0.65144882,191.88,191.85,4.86820594]
[1753672254630,36.98,191.87,191.85,5.58820594]
[1753672254951,0.65151673,191.86,191.83,0.66000001]
[1753672255126,42.50820594,191.85,191.83,1e-08]
[1753672255327,0.65158465,191.84,191.83,1e-08]
[1753672255733,1.31158465,191.84,191.83,1e-08]
[1753672256122,0.65158465,191.84,191.83,1e-08]
[1753672256923,5.86426188,191.84,191.83,1e-08]
[1753672259614,5.86426188,191.84,191.83,0.66000001]
[1753672259814,5.21267723,191.84,191.83,0.66000001]
[1753672260324,5.18252908,191.88,191.83,5.52820595]
[1753672260325,0.03,191.88,191.83,5.52820595]
[1753672260527,37.01,191.88,191.87,4.86820594]
[1753672260732,0.03,191.88,191.87,5.52820594]
[1753672262251,15.7434634,191.93,191.87,5.52820594]
[1753672262252,0.65117732,191.96,191.9,26.0]
[1753672262551,3.27881238,191.98,191.95,4.86820594]
[1753672262760,3.27881238,191.98,191.96,4.86820594]
[1753672262761,42.3253344,191.98,191.96,4.86820594]
[1753672262922,2.71763151,191.98,191.97,4.86820594]
[1753672263128,0.65097385,192.02,191.97,5.52820594]
[1753672263339,3.36852966,192.02,191.98,4.86820594]
[1753672263536,22.25604032,192.02,191.97,5.52820594]
[1753672263735,26.46424626,192.02,191.96,4.86820594]
[1753672263952,0.66,192.01,191.96,4.86820594]
[1753672264254,43.1592476,192.0,191.94,4.86820594]
[1753672264624,43.1592476,192.0,191.95,4.86820594]
[1753672265257,0.66,191.99,191.95,4.86820594]
[1753672265428,5.20914726,191.97,191.93,30.86820594]
[1753672265626,1.31117732,191.96,191.92,4.86820594]
[1753672265844,0.65117732,191.96,191.92,4.86820594]
[1753672266048,0.65117732,191.96,191.87,125.28]
[1753672266049,0.66,191.95,191.91,4.86820594]
[1753672266354,36.98,191.94,191.91,4.86820594]
[1753672266725,36.98,191.94,191.91,5.52820594]
[1753672267153,36.98,191.94,191.92,4.86820594]
[1753672267443,36.98,191.94,191.93,5.52820594]
[1753672267650,5.2097109,191.95,191.93,5.52820594]
[1753672267830,5.2097109,191.95,191.94,5.52820594]
[1753672268025,5.2097109,191.95,191.9,26.0]
[1753672268026,5.2097109,191.95,191.9,26.66]
[1753672268231,6.52092215,191.95,191.91,4.86820594]
[1753672268449,5.86092215,191.95,191.92,4.86820594]
[1753672269152,4.21985609,192.08,191.94,4.86820594]
[1753672269153,0.65100776,192.01,191.94,4.86820594]
[1753672269327,0.65100776,192.01,191.99,4.86820594]
[1753672269528,5.20833333,192.0,191.99,4.86820594]
[1753672270340,42.16810862,192.01,191.99,5.52820594]
[1753672270534,42.16810862,192.01,192.0,4.86820594]
[1753672271556,43.47911638,192.01,191.94,26.0]
[1753672271746,56.49927158,192.01,191.96,4.86820594]
[1753672272093,4.86820594,191.99,191.93,0.66]
[1753672272230,37.61110949,191.98,191.93,4.86820594]
[1753672272431,38.27110949,191.98,191.94,4.86820594]
[1753672272835,38.27110949,191.98,191.94,7.82367024]
[1753672273138,38.27110949,191.98,191.93,26.0]
[1753672273139,5.20810862,192.01,191.97,7.82367024]
[1753672273350,42.81911638,192.01,191.98,7.82367024]
[1753672274162,42.81911638,192.01,191.95,0.66]
[1753672274163,42.81911638,192.01,191.97,7.82367024]
[1753672274362,0.66,192.0,191.95,7.82367024]
[1753672274563,0.65107557,191.99,191.95,7.82367024]
[1753672274743,36.98,191.98,191.95,7.82367024]
[1753672275483,1.3111434,191.97,191.94,7.82367024]
[1753672275786,5.20969002,191.95,191.91,7.82367024]
[1753672275952,42.84090127,191.95,191.91,7.82367024]
[1753672276151,42.84090127,191.95,191.92,7.82367024]
[1753672276473,55.86512632,191.95,191.9,7.82367024]
[1753672276663,0.66,191.94,191.9,7.82367024]
[1753672276979,0.65127911,191.93,191.9,7.82367024]
[1753672277543,5.21050437,191.92,191.9,7.82367024]
[1753672278353,5.21050437,191.92,191.87,0.66]
[1753672278554,5.21050437,191.92,191.89,7.82367024]
[1753672279466,5.21023289,191.93,191.89,7.82367024]
[1753672279658,38.27131304,191.92,191.87,7.82367024]
[1753672279866,8.48367024,191.91,191.85,7.82367024]
[1753672280083,8.48367024,191.91,191.88,7.82367024]
[1753672280084,0.65134698,191.91,191.88,7.82367024]
[1753672280449,0.65134698,191.91,191.87,7.88367024]
[1753672280651,0.65134698,191.91,191.87,0.72]
[1753672280848,0.65134698,191.91,191.87,8.54367024]
[1753672281187,36.96,191.91,191.88,7.82367024]
[1753672281680,5.21104742,191.9,191.88,7.82367024]
[1753672282265,5.21104742,191.9,191.87,0.06]
[1753672282571,36.96,191.91,191.88,0.66]
[1753672282788,5.21050437,191.92,191.89,7.82367024]
[1753672283991,0.03,191.93,191.91,7.82367024]
[1753672284292,5.24025803,191.93,191.91,7.82367024]
[1753672284653,5.24025803,191.93,191.9,7.82367024]
[1753672284848,0.66,191.92,191.89,7.82367024]
[1753672285094,0.66,191.92,191.87,0.06]
[1753672285095,1.31134698,191.91,191.87,7.88367024]
[1753672285252,1.31134698,191.91,191.87,0.06]
[1753672285588,0.65134698,191.91,191.87,7.88367024]
[1753672285883,5.21104742,191.9,191.87,7.88367024]
[1753672286086,5.21104742,191.9,191.87,0.06]
[1753672286248,5.21104742,191.9,191.87,7.88367024]
[1753672286449,5.87104742,191.9,191.87,7.88367024]
[1753672286882,0.65141487,191.89,191.87,0.06]
[1753672287091,1.31141487,191.89,191.87,0.06]
[1753672288060,0.66,191.88,191.87,0.06]
[1753672288252,8.48367024,191.88,191.87,0.06]
[1753672288661,5.21159057,191.88,191.87,0.06]
[1753672288890,13.69526081,191.88,191.87,0.06]
[1753672289690,5.87159057,191.88,191.87,0.06]
[1753672289890,5.21159057,191.88,191.87,0.06]
[1753672290096,42.17154648,191.89,191.87,7.88367024]
[1753672290264,42.17154648,191.89,191.87,0.06]
[1753672292572,5.21110548,191.9,191.87,0.78]
[1753672292792,5.21110548,191.9,191.87,7.88367024]
[1753672292970,5.21159057,191.88,191.87,0.06]
[1753672293174,49.99526081,191.88,191.87,0.06]
[1753672293374,50.65526081,191.88,191.87,0.06]
[1753672293704,50.93958395,191.88,191.87,1e-08]
[1753672298388,67.72426792,191.88,191.87,1e-08]
[1753672300909,82.91852642,191.88,191.87,1e-08]
[1753672301499,42.78468397,191.84,191.79,0.06]
[1753672301701,7.82367024,191.8,191.79,0.06]
[1753672301875,44.80367024,191.8,191.79,0.06]
[1753672302277,45.46367024,191.8,191.79,0.06]
[1753672303581,50.67743457,191.8,191.79,0.06]
[1753672304488,50.96175771,191.8,191.79,0.06]
[1753672304706,0.28432314,191.79,191.72,0.72]
[1753672304905,7.82367024,191.76,191.72,0.72]
[1753672305099,38.2917885,191.78,191.73,0.72]
[1753672305100,36.98,191.75,191.73,0.72]
[1753672305494,36.98,191.75,191.72,7.82367024]
[1753672305697,36.98,191.75,191.74,0.72]
[1753672306221,42.19512385,191.75,191.74,0.72]
[1753672306987,42.19512385,191.75,191.71,7.82367024]
[1753672307192,42.19512385,191.75,191.73,0.72]
[1753672309122,36.98,191.75,191.74,0.72]
[1753672309617,0.65182249,191.77,191.74,8.54367024]
[1753672309908,36.98,191.77,191.7,131.0]
[1753672310082,0.65185648,191.76,191.72,0.72]
[1753672310285,36.98,191.75,191.7,131.72]
[1753672310504,36.98,191.75,191.71,8.54367024]
[1753672310688,36.98,191.75,191.72,0.72]
[1753672311718,5.21437401,191.78,191.74,7.82367024]
[1753672311892,36.98,191.76,191.74,7.82367024]
[1753672312090,42.8466111,191.77,191.75,0.72]
[1753672312790,0.65172054,191.8,191.76,7.82367024]
[1753672312993,36.98,191.81,191.79,7.82367024]
[1753672313202,5.21270038,191.84,191.8,8.54367024]
[1753672313409,42.86428503,191.84,191.81,8.54367024]
[1753672314324,7.82367024,191.82,191.75,0.72]
[1753672314502,7.82367024,191.8,191.74,26.0]
[1753672314690,37.65175452,191.79,191.74,7.82367024]
[1753672314886,0.66,191.78,191.73,8.54367024]
[1753672315089,37.65182249,191.77,191.73,8.54367024]
[1753672315521,38.31182249,191.77,191.73,7.82367024]
[1753672315889,37.0,191.77,191.74,8.53367024]
[1753672316094,37.0,191.77,191.75,0.71]
[1753672316328,37.0,191.77,191.75,8.53367024]
[1753672316536,36.98,191.79,191.75,8.53367024]
[1753672316903,42.19405139,191.79,191.75,0.71]
[1753672317925,42.19405139,191.79,191.74,4.89931346]
[1753672318225,42.85405139,191.79,191.74,5.60931346]
[1753672318434,42.85405139,191.79,191.75,4.89931346]
[1753672319218,42.85405139,191.79,191.74,5.60931346]
[1753672319822,0.66,191.78,191.74,5.60931346]
[1753672320032,42.84580591,191.79,191.75,5.60931346]
[1753672320619,42.84580591,191.79,191.75,4.89931346]
[1753672320819,0.66,191.78,191.75,4.89931346]
[1753672321021,42.84580591,191.79,191.73,26.71]
[1753672321022,1.31182249,191.77,191.73,4.89931346]
[1753672321199,0.65182249,191.77,191.73,4.89931346]
[1753672321533,0.66,191.76,191.73,4.89931346]
[1753672322090,1.3117885,191.78,191.74,4.89931346]
[1753672322351,36.98,191.79,191.75,5.60931346]
[1753672322813,38.29175452,191.79,191.75,4.89931346]
[1753672323020,0.66,191.78,191.73,5.60931346]
[1753672323231,6.21113595,191.77,191.71,4.89931346]
[1753672323528,37.64,191.76,191.71,4.89931346]
[1753672323736,0.65189048,191.75,191.71,4.89931346]
[1753672324041,1.31189048,191.75,191.71,4.89931346]
[1753672324199,6.52710783,191.75,191.71,5.60931346]
[1753672324596,5.86710783,191.75,191.72,4.89931346]
[1753672325941,36.98,191.76,191.74,4.89931346]
[1753672326148,36.98,191.76,191.74,4.95931346]
[1753672326821,6.24106798,191.79,191.74,4.95931346]
[1753672327024,37.66175452,191.79,191.76,4.89931346]
[1753672327225,37.66175452,191.79,191.77,0.71]
[1753672327636,0.66,191.78,191.74,0.06]
[1753672327947,4.89931346,191.75,191.74,0.06]
[1753672328110,43.19120394,191.75,191.74,0.06]
[1753672328706,38.29189048,191.75,191.74,0.06]
[1753672329112,43.19120394,191.75,191.74,0.06]
[1753672330043,48.40632779,191.75,191.74,0.06]
[1753672330624,43.50701433,191.75,191.74,0.06]
[1753672331154,42.84701433,191.75,191.74,0.06]
[1753672333116,43.50701433,191.75,191.74,0.06]
[1753672333453,42.84701433,191.75,191.74,0.06]
[1753672334443,0.65189048,191.75,191.74,4.95931346]
[1753672334623,42.84640463,191.77,191.74,5.66931346]
[1753672334823,42.84640463,191.77,191.75,4.89931346]
[1753672335155,42.84640463,191.77,191.74,5.66931346]
[1753672335537,42.84640463,191.77,191.74,4.95931346]
[1753672335736,43.50640463,191.77,191.74,0.06]
[1753672336050,0.66,191.76,191.74,0.06]
[1753672336247,37.63189048,191.75,191.74,0.06]
[1753672336453,43.50701433,191.75,191.74,0.06]
[1753672337018,0.65189048,191.75,191.74,5.66931346]
[1753672337220,42.84646937,191.77,191.74,5.66931346]
[1753672338048,42.84646937,191.77,191.74,4.95931346]
[1753672338453,36.98,191.77,191.74,4.95931346]
[1753672338659,36.98,191.77,191.74,5.66931346]
[1753672339164,0.03,191.79,191.76,4.89931346]
[1753672339450,0.03,191.79,191.78,4.89931346]
[1753672340326,0.03,191.79,191.77,4.89931346]
[1753672342284,0.03,191.79,191.76,0.71]
[1753672342582,0.03,191.79,191.76,4.89931346]
[1753672342760,0.66,191.78,191.74,0.06]
[1753672343075,4.89931346,191.76,191.74,0.06]
[1753672343277,1.31189048,191.75,191.74,0.06]
[1753672343648,6.21120394,191.75,191.74,0.06]
[1753672343850,6.49552708,191.75,191.74,0.06]
[1753672344051,0.28432314,191.73,191.66,0.06]
[1753672344277,4.89931346,191.69,191.63,4.89931346]
[1753672344447,37.63212854,191.68,191.63,4.89931346]
[1753672344647,5.87730056,191.67,191.63,4.89931346]
[1753672344849,36.98,191.68,191.65,4.89931346]
[1753672345147,42.84857567,191.7,191.63,26.0]
[1753672345347,0.69,191.69,191.61,0.7]
[1753672345652,0.65212854,191.68,191.61,0.7]
[1753672345870,36.98,191.67,191.61,0.7]
[1753672346075,0.65219659,191.66,191.61,0.7]
[1753672346288,0.69,191.65,191.6,131.0]
[1753672346452,37.63226466,191.64,191.6,135.89931346]
[1753672346650,5.90859419,191.63,191.6,135.89931346]
[1753672347052,5.90859419,191.63,191.6,131.0]
[1753672347349,1.34233274,191.62,191.6,131.0]
[1753672347547,0.65233274,191.62,191.6,131.0]
[1753672347782,37.67,191.61,191.6,131.0]
[1753672348178,37.95432314,191.61,191.6,131.0]
[1753672348381,44.4937366,191.61,191.6,131.0]
[1753672348694,45.46572421,191.61,191.6,131.0]
[1753672348980,42.19893429,191.61,191.6,131.0]
[1753672349179,5.87102028,191.62,191.6,131.0]
[1753672349393,37.0,191.61,191.6,131.0]
[1753672350590,0.6522987,191.63,191.6,136.59931346]
[1753672350760,37.0,191.63,191.61,4.89931346]
[1753672351091,37.0,191.63,191.61,5.59931346]
[1753672351256,37.0,191.63,191.61,2.09931346]
[1753672351452,0.65223062,191.65,191.62,4.89931346]
[1753672351689,0.65219659,191.66,191.64,4.89931346]
[1753672351902,37.0,191.67,191.65,4.89931346]
[1753672352232,37.0,191.67,191.64,4.89931346]
[1753672352569,37.0,191.67,191.65,4.89931346]
[1753672352794,37.0,191.67,191.65,7.84678325]
[1753672352991,0.69,191.66,191.63,7.84678325]
[1753672353165,0.69,191.65,191.6,131.0]
[1753672353364,0.69,191.65,191.63,7.84678325]
[1753672353672,42.2173116,191.67,191.6,136.59920428]
[1753672353874,42.2173116,191.67,191.63,7.84678325]
[1753672354060,42.9073116,191.67,191.63,7.84678325]
[1753672354261,0.69,191.66,191.63,7.84678325]
[1753672355893,1.34223062,191.65,191.62,7.84678325]
[1753672356979,1.34223062,191.65,191.6,131.0]
[1753672357365,1.34223062,191.65,191.62,7.84678325]
[1753672357878,6.56017128,191.65,191.6,131.0]
[1753672358078,5.87017128,191.65,191.62,7.84678325]
[1753672358798,5.87017128,191.65,191.62,8.22678325]
[1753672358965,5.87017128,191.65,191.62,7.84678325]
[1753672359902,6.56017128,191.65,191.62,7.84678325]
[1753672360199,0.69,191.64,191.6,138.84678325]
[1753672360393,0.69,191.63,191.6,138.84678325]
[1753672361094,37.0,191.64,191.6,138.84678325]
[1753672361293,37.69,191.64,191.6,138.84678325]
[1753672361478,37.0,191.64,191.6,138.84678325]
[1753672361677,37.0,191.64,191.61,7.84678325]
[1753672362004,0.65209452,191.69,191.63,7.84678325]
[1753672362224,37.0,191.7,191.66,7.84678325]
[1753672362505,1.5173,191.76,191.69,7.84678325]
[1753672362506,0.65192448,191.74,191.69,7.84678325]
[1753672362671,37.0,191.72,191.71,7.84678325]
[1753672363302,5.86734457,191.74,191.71,7.84678325]
[1753672363526,2.71550985,191.75,191.72,7.84678325]
[1753672363527,3.36740033,191.75,191.72,7.84678325]
[1753672363712,5.21506403,191.76,191.73,7.84678325]
[1753672364132,5.21506403,191.76,191.71,0.38]
[1753672364133,5.90457834,191.78,191.75,7.84678325]
[1753672364291,42.24414722,191.79,191.77,7.84678325]
[1753672364614,42.24414722,191.79,191.75,7.84678325]
[1753672364827,0.69,191.78,191.75,7.84678325]
[1753672365492,0.69,191.77,191.73,7.84678325]
[1753672365682,0.69,191.77,191.7,26.0]
[1753672365683,38.34185648,191.76,191.7,7.84678325]
[1753672365900,38.34185648,191.76,191.66,0.38]
[1753672365901,5.21539584,191.74,191.68,33.84678325]
[1753672366109,38.34195848,191.73,191.69,33.84678325]
[1753672367092,38.34195848,191.73,191.66,37.38]
[1753672367093,5.90593991,191.72,191.68,7.84678325]
[1753672367295,5.90593991,191.72,191.66,7.84678325]
[1753672367296,1.34202649,191.71,191.66,7.84678325]
[1753672367608,45.51678325,191.7,191.64,7.84678325]
[1753672367803,8.49887777,191.69,191.64,7.84678325]
[1753672367996,0.69,191.68,191.61,0.38]
[1753672368188,8.49894582,191.67,191.62,7.84678325]
[1753672368407,37.67,191.66,191.62,7.84678325]
[1753672368587,0.69,191.65,191.62,7.84678325]
[1753672369220,5.90789564,191.65,191.62,7.84678325]
[1753672369737,0.69,191.65,191.62,7.84678325]
[1753672369904,37.63219659,191.66,191.62,7.84678325]
[1753672370298,42.84990374,191.66,191.62,7.84678325]
[1753672370694,0.65219659,191.66,191.65,7.84678325]
[1753672370941,36.98,191.68,191.65,7.84678325]
[1753672371143,36.98,191.68,191.66,7.84678325]
[1753672371847,36.98,191.68,191.65,7.84678325]
[1753672372011,36.98,191.68,191.63,5.59838155]
[1753672372210,36.98,191.68,191.65,7.84678325]
[1753672372447,5.21678186,191.69,191.65,7.84678325]
[1753672372630,36.98,191.68,191.65,7.84678325]
[1753672372813,36.98,191.68,191.63,26.0]
[1753672373017,36.98,191.68,191.66,7.84678325]
[1753672374043,37.67,191.68,191.65,7.84678325]
[1753672375333,36.98,191.68,191.65,7.84678325]
[1753672375540,9.21894582,191.67,191.61,96.20678325]
[1753672375729,9.21894582,191.67,191.61,7.90678325]
[1753672377023,5.21757278,191.66,191.61,7.90678325]
[1753672377219,37.7,191.65,191.62,7.84678325]
[1753672377436,0.72,191.64,191.61,7.90678325]
[1753672378217,42.19794675,191.65,191.61,7.90678325]
[1753672378629,5.21794675,191.65,191.62,7.84678325]
[1753672378833,36.98,191.64,191.62,7.84678325]
[1753672379047,0.72,191.7,191.63,8.22678325]
[1753672379244,42.84885074,191.69,191.63,8.22678325]
[1753672379446,42.84885074,191.69,191.65,7.84678325]
[1753672379849,0.72,191.68,191.61,5.65891752]
[1753672380040,0.72,191.68,191.64,7.84678325]
[1753672380363,36.98,191.69,191.67,7.84678325]
[1753672380565,0.03,191.71,191.68,7.84678325]
[1753672380736,0.03,191.71,191.69,7.84678325]
[1753672382307,8.56678325,191.7,191.63,36.98]
[1753672382576,0.68202649,191.71,191.63,36.98]
[1753672382577,46.19887777,191.69,191.63,7.84678325]
[1753672382867,38.35209452,191.69,191.64,33.84678325]
[1753672383053,0.72,191.68,191.64,33.84678325]
[1753672383252,5.93730056,191.67,191.63,26.0]
[1753672383469,0.72,191.66,191.63,33.84678325]
[1753672383630,0.72,191.65,191.61,7.90678325]
[1753672383837,0.72,191.64,191.61,0.06]
[1753672384137,37.7,191.64,191.61,0.06]
[1753672384663,36.98,191.64,191.61,0.06]
[1753672384868,0.72,191.63,191.61,7.90678325]
[1753672385968,0.72,191.63,191.61,0.06]
[1753672386179,0.72,191.62,191.61,0.06]
[1753672386347,37.7,191.64,191.61,0.06]
[1753672386748,36.98,191.64,191.61,0.06]
[1753672386969,0.65223062,191.65,191.62,7.84678325]
[1753672387176,36.98,191.65,191.62,7.84678325]
[1753672387365,36.98,191.65,191.63,7.84678325]
[1753672388375,42.91785786,191.65,191.62,7.84678325]
[1753672390151,0.72,191.64,191.62,7.84678325]
[1753672390883,0.72,191.64,191.62,4.90618806]
[1753672391678,0.72,191.64,191.61,4.96618806]
[1753672391871,0.72,191.63,191.61,4.96618806]
[1753672392248,42.91785786,191.65,191.61,4.96618806]
[1753672392470,0.72,191.64,191.61,4.96618806]
[1753672393382,5.93815342,191.64,191.61,0.06]
[1753672393589,5.93815342,191.64,191.61,4.96618806]
[1753672393788,0.72,191.64,191.61,4.96618806]
[1753672395975,37.7,191.64,191.61,4.96618806]
[1753672396968,36.98,191.64,191.62,4.90618806]
[1753672397165,36.98,191.64,191.63,4.90618806]
[1753672397688,36.98,191.64,191.62,4.90618806]
[1753672398477,42.19813357,191.64,191.62,4.90618806]
[1753672399057,42.91813357,191.64,191.62,4.90618806]
[1753672399792,42.91813357,191.64,191.61,0.06]
[1753672400091,42.91813357,191.64,191.62,4.90618806]
[1753672400290,42.91813357,191.64,191.61,4.96618806]
[1753672400488,0.72,191.63,191.61,4.96618806]
[1753672400995,0.72,191.62,191.61,4.96618806]
[1753672401578,0.72,191.62,191.61,0.06]
[1753672401579,10.84484999,191.62,191.61,0.06]
[1753672401778,16.78468397,191.61,191.58,0.06]
[1753672401984,16.78468397,191.61,191.48,94.5907]
[1753672401985,0.28432314,191.58,191.51,4.90618806]
[1753672402187,43.25869106,191.57,191.51,4.90618806]
[1753672402388,36.98,191.56,191.51,4.90618806]
[1753672402588,0.65257113,191.55,191.51,4.90618806]
[1753672402898,0.72,191.54,191.51,4.90618806]
[1753672403680,5.94084389,191.54,191.51,4.90618806]
[1753672404081,5.94084389,191.54,191.48,0.5]
[1753672404293,5.94084389,191.54,191.51,4.90618806]
[1753672406097,0.72,191.54,191.51,4.90618806]
[1753672406596,0.65257113,191.55,191.53,4.90618806]
[1753672406597,36.98,191.55,191.53,4.90618806]
[1753672406803,1.32246894,191.58,191.54,4.90618806]
[1753672407007,36.98,191.57,191.55,4.90618806]
[1753672408298,36.98,191.57,191.5,41.88618806]
[1753672408299,0.67,191.56,191.53,26.0]
[1753672408501,0.67,191.55,191.52,26.0]
[1753672408677,0.67,191.54,191.52,26.0]
[1753672410300,0.67,191.53,191.51,4.90618806]
[1753672410477,0.67,191.53,191.5,26.0]
[1753672410478,1.32263927,191.53,191.5,26.0]
[1753672410678,1.32263927,191.53,191.5,30.90618806]
[1753672410994,0.67,191.52,191.5,30.90618806]
[1753672411700,42.87087794,191.54,191.5,30.90618806]
[1753672411895,0.67,191.53,191.5,30.90618806]
[1753672412193,42.85348313,191.54,191.5,30.90618806]
[1753672412396,0.65260519,191.54,191.5,30.90618806]
[1753672412598,36.98,191.54,191.5,30.90618806]
[1753672413311,37.65,191.54,191.5,30.90618806]
[1753672413612,42.87095841,191.54,191.5,30.90618806]
[1753672413801,42.8535636,191.54,191.5,30.90618806]
[1753672414003,0.67,191.53,191.5,30.90618806]
[1753672414397,42.8535636,191.54,191.5,30.90618806]
[1753672414595,0.67,191.53,191.5,4.96618806]
[1753672415802,5.8911435,191.53,191.5,30.96618806]
[1753672416104,0.67,191.53,191.5,30.96618806]
[1753672416303,37.63260519,191.54,191.5,30.96618806]
[1753672416487,43.52345086,191.54,191.5,30.96618806]
[1753672417083,0.67,191.58,191.53,4.90618806]
[1753672417302,0.67,191.57,191.54,4.90618806]
[1753672417489,0.65253706,191.56,191.52,4.90618806]
[1753672417697,0.67,191.55,191.53,4.90618806]
[1753672418101,0.67,191.55,191.52,4.90618806]
[1753672418301,0.67,191.54,191.52,4.90618806]
[1753672418692,0.65253706,191.56,191.51,26.0]
[1753672418693,5.22062524,191.55,191.51,26.0]
[1753672418892,0.67,191.53,191.5,30.96618806]
[1753672419411,5.57618806,191.52,191.5,0.06]
[1753672419589,4.90618806,191.51,191.5,0.06]
[1753672419828,36.98,191.52,191.5,4.96618806]
[1753672419995,0.65260519,191.54,191.51,4.90618806]
[1753672420294,0.67,191.53,191.5,0.06]
[1753672420492,0.65267335,191.52,191.5,0.06]
[1753672420913,0.67,191.51,191.5,0.06]
[1753672421222,0.67,191.52,191.5,0.06]
[1753672421717,6.54436687,191.51,191.5,0.06]
[1753672421932,1.32270743,191.51,191.5,0.06]
[1753672422099,0.65267335,191.52,191.5,0.06]
[1753672422309,36.98,191.52,191.5,4.96618806]
[1753672422619,0.65263927,191.53,191.5,4.96618806]
[1753672422818,0.65263927,191.53,191.52,4.90618806]
[1753672422819,36.98,191.53,191.52,4.90618806]
[1753672423020,0.65243488,191.59,191.52,31.40618806]
[1753672423193,5.87136843,191.61,191.58,4.90618806]
[1753672423519,37.03,191.64,191.6,4.90618806]
[1753672423712,37.03,191.64,191.61,4.90618806]
[1753672423917,0.67,191.63,191.6,4.90618806]
[1753672424223,0.67,191.62,191.59,4.90618806]
[1753672424821,0.6522987,191.63,191.59,4.90618806]
[1753672425000,0.6522987,191.63,191.6,4.90618806]
[1753672425199,1.3222987,191.63,191.6,4.90618806]
[1753672425611,37.67,191.63,191.61,4.90618806]
[1753672425814,38.3222987,191.63,191.61,4.90618806]
[1753672426123,43.54073877,191.63,191.6,4.90618806]
[1753672426307,0.67,191.62,191.59,4.90618806]
[1753672426500,42.87073877,191.63,191.59,4.90618806]
[1753672426725,0.67,191.61,191.57,26.0]
[1753672426920,0.67,191.61,191.58,26.0]
[1753672427221,0.67,191.61,191.59,4.90618806]
[1753672428019,5.87107237,191.62,191.59,4.90618806]
[1753672428317,1.32233274,191.62,191.6,4.90618806]
[1753672428525,37.6522987,191.63,191.6,4.90618806]
[1753672428820,37.0,191.63,191.62,4.90618806]
[1753672429020,0.03,191.64,191.62,4.90618806]
[1753672429221,0.03,191.64,191.63,4.90618806]
[1753672429904,0.03,191.64,191.63,10.62457766]
[1753672430107,0.03,191.64,191.63,27.40926163]
[1753672432415,0.03,191.64,191.63,27.92447297]
[1753672432896,0.03,191.64,191.63,33.84476324]
[1753672433097,0.7,191.64,191.61,33.84476324]
[1753672433397,0.67,191.63,191.6,26.0]
[1753672433598,0.67,191.62,191.56,36.98]
[1753672433812,0.67,191.62,191.57,7.84476324]
[1753672434104,0.67,191.61,191.57,7.84476324]
[1753672434304,0.67,191.61,191.58,7.84476324]
[1753672434715,0.65233274,191.62,191.58,7.84476324]
[1753672434716,43.7458,191.64,191.6,7.84476324]
[1753672434996,0.66,191.63,191.61,7.84476324]
[1753672437329,0.66,191.63,191.6,7.84476324]
[1753672438398,8.50476324,191.62,191.58,0.06]
[1753672438598,0.66,191.61,191.58,0.06]
[1753672439699,5.87903597,191.61,191.58,0.06]
[1753672440330,0.66,191.6,191.58,0.06]
[1753672440714,5.21903597,191.61,191.58,0.06]
[1753672440923,5.87870878,191.62,191.58,0.06]
[1753672441106,0.66,191.61,191.58,0.06]
[1753672441820,0.6522987,191.63,191.59,7.84476324]
[1753672441999,37.65,191.64,191.58,26.06]
[1753672442205,38.30226466,191.64,191.59,7.84476324]
[1753672442426,0.66,191.63,191.58,26.06]
[1753672442625,37.64226466,191.64,191.6,7.84476324]
[1753672442944,37.64226466,191.64,191.58,26.06]